Cogmind - Beta 15 @@@ ROGUE MODE // 2025.05.18 @ 11:52:11 Player: Lunace Result: Destroyed by V213-t with Concept Helical Railcannon Performance ------------- Evolutions (8) 4000 Regions Visited (23) 4600 Robots Destroyed (65) 325 Value Destroyed (2323) 2323 Prototype IDs (131) 2620 Alien Tech Used (4) 800 Bonus (5396) 5396 TOTAL SCORE: 20064 Bonus ------- Follower Combat Kills 3000 Registered with UFD 300 Met Optimus in HQ 500 Met Data Miner 300 Met Zhirov 300 Met Warlord at Base 500 MAIN.C Attacked Warlord 500 Scanned by Researcher 500 Friendly Fire -504 Cogmind --------- Core Integrity 0/1450 Matter 82/300 Energy 80/100 System Corruption 0% Temperature Cool (0) Movement Core (150) Ox2 Location -2/Protoforge Parts ------- > --- POWER (2) -------- (None) > --- PROPULSION (6) --- (None) > --- UTILITY (12) ----- Experimental Salvage Targeting Computer Advanced Hacking Suite Advanced System Shield Amulet of Y3-NDR > --- WEAPON (3) ------- Enhanced Force Lance > --- INVENTORY (5) ---- Experimental Q-thruster Compact HERF Cannon Peak State ------------ > --- POWER ------------ Light Quantum Reactor Meta Core > --- PROPULSION ------- Cooled Nuclear Pulse Thruster Diametric Drive Electron Diverter Flightbrick > --- UTILITY ---------- Experimental Cooling System Small Storage Unit Structural Scanner Advanced Sensor Array Advanced Signal Interpreter Advanced Reaction Control System Experimental Cloaking Device Improved Hacking Suite Advanced Hacking Suite Advanced Hacking Suite Advanced Hacking Suite Improved System Shield Advanced System Shield Amulet of Y3-NDR > --- WEAPON ----------- Compact HERF Cannon Force Lance > --- INVENTORY -------- Light Quantum Reactor Experimental Q-thruster Experimental Q-thruster Enhanced Scrap Shield Advanced Hacking Suite Transdimensional Reconstructor Compact HERF Cannon [Rating: 182] Favorites ----------- Power Meta Core Engine Subdweller Power Source Power Core Meta Core Reactor Light Quantum Reactor Propulsion Flightbrick Treads Light Treads Leg Experimental VSS Leg Wheel Wheel Flight Unit Flightbrick Utility Advanced Hacking Suite Device Advanced Sensor Array Storage Small Storage Unit Processor Improved Signal Interpreter Hackware Advanced Hacking Suite Protection Improved Light Armor Plating Weapon Subdweller Laser Energy Gun Subdweller Laser Energy Cannon Beam Cannon Ballistic Gun Assault Rifle Launcher Long-range Missile Launcher Special Weapon Mining Laser Slashing Weapon Ionic Axe Piercing Weapon Vortex Lance Special Melee Weapon Dirty Datajack Build | -11 -10 -10 -8 -8 -6 -6 -6 -6 -5 -5 -5 -5 -5 -4 -4 -4 -4 -4 -3 -3 -2 -2 -2 ------- Run | Yrd Mat Sub Rec Scr Fac Low Low Dat Pro Fac Upp Upp War Pro Fac Upp Upp Zhi Pro Res Res Qua Frg Slots Evolved 14 | . . . . . 8 . . . . 2 . . . . 2 . . . . 2 . . . Power 1 | . . . . . . . . . . . . . . . 1 . . . . . . . . Propulsion 4 | . . . . . 2 . . . . 1 . . . . . . . . . 1 . . . Utility 9 | . . . . . 6 . . . . 1 . . . . 1 . . . . 1 . . . Weapon . | . . . . . . . . . . . . . . . . . . . . . . . . Parts Attached 105 | 7 8 14 1 8 12 2 2 . 2 8 . . 4 1 6 1 . 4 1 4 2 5 13 Power 16 | 1 1 3 1 4 1 . 1 . . . . . . . 2 . . 1 . . . 1 . Engine 8 | 1 . 3 1 2 1 . . . . . . . . . . . . . . . . . . Core 4 | . 1 . . 2 . . 1 . . . . . . . . . . . . . . . . Reactor 4 | . . . . . . . . . . . . . . . 2 . . 1 . . . 1 . Propulsion 22 | 2 1 6 . . 1 . . . . 1 . . 1 . . . . 1 . 3 . . 6 Treads 4 | 2 1 1 . . . . . . . . . . . . . . . . . . . . . Leg 4 | . . . . . . . . . . . . . . . . . . . . . . . 4 Wheel 5 | . . 5 . . . . . . . . . . . . . . . . . . . . . Hover . | . . . . . . . . . . . . . . . . . . . . . . . . Flight 9 | . . . . . 1 . . . . 1 . . 1 . . . . 1 . 3 . . 2 Utility 46 | 2 3 2 . 1 10 . 1 . 2 6 . . 2 1 4 1 . 1 1 . 2 2 5 Device 17 | 1 2 2 . 1 1 . 1 . . 1 . . 2 . . 1 . . . . 1 1 3 Storage 4 | 1 1 . . . 1 . . . . . . . . . . . . . . . . 1 . Processor 3 | . . . . . 1 . . . . . . . . . 1 . . . . . . . 1 Hackware 19 | . . . . . 5 . . . 2 5 . . . . 3 . . 1 1 . 1 . 1 Protection 3 | . . . . . 2 . . . . . . . . 1 . . . . . . . . . Artifact . | . . . . . . . . . . . . . . . . . . . . . . . . Weapon 21 | 2 3 3 . 3 . 2 . . . 1 . . 1 . . . . 1 . 1 . 2 2 Energy Gun 4 | . 1 3 . . . . . . . . . . . . . . . . . . . . . Energy Cannon 2 | . 1 . . . . . . . . . . . . . . . . . . 1 . . . Ballistic Gun 5 | 2 . . . 2 . . . . . . . . . . . . . . . . . . 1 Ballistic Cannon . | . . . . . . . . . . . . . . . . . . . . . . . . Launcher 1 | . . . . . . 1 . . . . . . . . . . . . . . . . . Special Weapon 1 | . 1 . . . . . . . . . . . . . . . . . . . . . . Impact Weapon . | . . . . . . . . . . . . . . . . . . . . . . . . Slashing Weapon 2 | . . . . . . . . . . 1 . . . . . . . . . . . . 1 Piercing Weapon 5 | . . . . 1 . . . . . . . . 1 . . . . 1 . . . 2 . Special Melee Weapon 1 | . . . . . . 1 . . . . . . . . . . . . . . . . . Unidentified Prototypes 14 | . . 1 . . . . 1 . . . . . 4 . . . . 2 . . . 2 4 Parts Lost 29 | . . 2 . . . . . . . . 1 . . . . . . . 1 4 1 2 18 Power 4 | . . 2 . . . . . . . . . . . . . . . . . . . . 2 Propulsion 8 | . . . . . . . . . . . . . . . . . . . . 1 . . 7 Utility 15 | . . . . . . . . . . . 1 . . . . . . . 1 1 1 2 9 Weapon 2 | . . . . . . . . . . . . . . . . . . . . 2 . . . Highest Loss Streak 15 | . . 1 . . . . . . . . 1 . . . . . . . 1 4 1 1 15 To Critical Strikes 1 | . . . . . . . . . . . . . . . . . . . . . . . 1 Average Backups 8 | . 6 12 15 15 6 5 6 6 6 4 4 5 5 6 5 6 6 7 7 6 6 7 5 Power . | . . . . 1 . . . . . 1 2 3 2 2 1 1 1 . . . 1 . . Propulsion 1 | . 1 3 3 1 . . . . . . . . . . . . . . 2 . 1 2 1 Utility 4 | . 1 4 7 11 5 5 5 5 5 2 1 1 1 2 2 3 3 4 4 3 2 2 1 Weapon 1 | . 2 3 3 1 . . . 1 1 1 . . 1 2 1 1 1 . . . 1 1 1 Tool/Special . | . . . . . . . . . . . . . . . . . . . . . . . . Unused Backups 22 | . 2 2 2 2 1 2 . . 1 3 . . . . 2 . . 1 . . 1 1 2 Power 4 | . . . . 1 . . . . . . . . . . 1 . . . . . 1 1 . Propulsion 3 | . . . 1 . . 1 . . . . . . . . 1 . . . . . . . . Utility 9 | . 1 . 1 . 1 1 . . 1 3 . . . . . . . . . . . . 1 Weapon 4 | . . 2 . 1 . . . . . . . . . . . . . . . . . . 1 Tool/Special 2 | . 1 . . . . . . . . . . . . . . . . 1 . . . . . Average Slot Usage (%) 86 | . 99 98 100 99 61 71 71 66 66 72 77 75 77 79 82 83 83 83 80 83 78 79 64 Engine 5 | . 1 11 14 13 5 5 3 . . . . . . . . . . . . . . . . Core 2 | . 12 . . . . . 1 4 4 4 4 4 4 4 4 4 4 4 4 3 3 3 2 Treads 6 | . 27 14 10 . . . . . . . . . . . . . . . . . . . . Wheel 6 | . . 13 17 28 . . . . . . . . . . . . . . . . . . . Flight 5 | . . . . . 4 5 4 4 4 4 8 9 11 13 12 12 12 12 12 15 15 15 13 Device 14 | . 14 14 14 13 10 11 12 14 14 13 13 13 16 18 16 16 16 16 16 18 21 22 15 Storage 8 | . 14 14 14 14 5 5 4 4 4 4 4 4 4 4 3 4 4 4 4 3 3 3 2 Processor 2 | . . . . . 4 5 4 4 4 4 4 4 4 4 4 4 4 4 4 3 3 3 4 Hackware 12 | . . . . . 17 22 21 19 19 28 29 27 27 24 28 29 29 29 26 25 23 21 17 Energy Gun 7 | . 8 20 28 3 . . . . . . . . . . . . . . . . . . . Ballistic Gun 3 | . 12 . . 23 . . . . . . . . . . . . . . . . . . . Special Weapon 1 | . 3 6 . . . . . . . . . . . . . . . . . . . . . Slashing Weapon 1 | . . . . . . . . . . 1 4 4 4 4 4 4 4 4 4 2 . . . Piercing Weapon 1 | . . . . . 4 5 4 4 4 2 . . 2 4 4 4 4 4 4 2 . 2 2 Peak Build Rating 182 | 7 12 20 19 25 74 81 97 97 108 134 131 124 145 145 161 161 161 166 166 180 175 182 165 Average Rating 77 | 5 10 15 18 22 69 80 86 97 97 118 128 122 137 144 158 159 160 163 161 178 172 172 130 On Entrance 104 | . 7 10 19 19 25 74 81 97 97 108 131 124 120 145 145 161 161 161 166 166 166 170 165 Naked Turns . | . . . . . . . . . . . . . . . . . . . . . . . . Heaviest Build 57 | 13 50 54 56 57 22 29 30 20 20 22 29 29 23 37 35 37 37 38 40 41 41 45 42 Greatest Support 104 | 40 40 40 20 20 24 24 24 24 24 29 29 29 32 37 37 39 37 38 41 48 48 48 104 Greatest Overweight (x) 5 | . 1 5 5 2 . 1 1 . . . . . . . . . . . . . . . . Average Overweight (x) . | . . 2 4 2 . . . . . . . . . . . . . . . . . . . Largest Inventory Capacity 20 | 8 20 20 20 20 20 8 8 8 8 8 8 8 8 8 8 8 8 8 8 8 8 10 8 Average Capacity 12 | 7 8 20 20 20 8 8 8 8 8 8 8 8 8 8 7 8 8 8 8 8 8 8 6 Most Carried 20 | 3 10 19 20 20 20 8 8 8 8 8 7 8 8 8 8 8 8 8 8 8 8 10 7 Average Carried 10 | . 6 14 19 19 7 7 7 8 8 6 6 7 7 7 7 8 8 7 7 7 7 7 5 Final Capacity 20 | 8 20 20 20 20 8 8 8 8 8 8 8 8 8 8 8 8 8 8 8 8 8 8 5 Final Carried 20 | 3 10 18 20 20 8 8 8 8 8 6 7 8 7 8 8 8 8 8 8 7 8 7 2 Class Distribution -------------------- 43% | Mutant 23% | Wizard-Ninja 12% | Hacker-Scout 11% | Wizard-Scout 4% | Scavenger-Mutant Dominant Class ---------------- Mutant | -10/Materials Mutant | -10/Subcaves Mutant | -8/Recycling Mutant | -8/Scraptown Hacker-Scout | -6/Factory Hacker-Scout | -6/Lower Caves Hacker-Scout | -6/Lower Caves Hacker-Scout | -6/Data Miner Hacker-Scout | -5/Proximity Caves Wizard-Scout | -5/Factory Wizard-Scout | -5/Upper Caves Wizard-Scout | -5/Upper Caves Wizard-Ninja | -5/Warlord Wizard-Ninja | -4/Proximity Caves Wizard-Ninja | -4/Factory Wizard-Ninja | -4/Upper Caves Wizard-Ninja | -4/Upper Caves Wizard-Ninja | -4/Zhirov Wizard-Ninja | -3/Proximity Caves Wizard-Ninja | -3/Research Wizard-Scout | -2/Research Wizard-Ninja | -2/Quarantine Wizard-Sprinter | -2/Protoforge Resources | -11 -10 -10 -8 -8 -6 -6 -6 -6 -5 -5 -5 -5 -5 -4 -4 -4 -4 -4 -3 -3 -2 -2 -2 ----------- Run | Yrd Mat Sub Rec Scr Fac Low Low Dat Pro Fac Upp Upp War Pro Fac Upp Upp Zhi Pro Res Res Qua Frg Matter Collected 1848 | 259 287 324 50 90 140 75 50 . 20 90 95 . . 60 70 . 53 . 105 40 40 . . Remotely . | . . . . . . . . . . . . . . . . . . . . . . . . Salvage Created 2622 | 90 288 174 56 . 84 58 26 . 64 187 299 . . 77 309 . . . 186 642 71 11 . Parts 152 | 12 26 10 6 . 7 4 1 . 9 9 11 . . 8 11 . . . 14 22 1 1 . Haulers Intercepted 4 | . . . . . . . . . . 1 . . . . 2 . . . . 1 . . . Recyclers Shooed 1 | 1 . . . . . . . . . . . . . . . . . . . . . . . Parts Field Recycled . | . . . . . . . . . . . . . . . . . . . . . . . . Retrieved Matter . | . . . . . . . . . . . . . . . . . . . . . . . . Parts Self-Destructed 84 | . . 8 . . . 14 2 . 5 . 11 . . 19 . . 7 . 18 . . . . Prevented 65 | . . . . . . . 6 . 14 . 6 . . 12 . 3 7 . 17 . . . . Kills | -11 -10 -10 -8 -8 -6 -6 -6 -6 -5 -5 -5 -5 -5 -4 -4 -4 -4 -4 -3 -3 -2 -2 -2 ------- Run | Yrd Mat Sub Rec Scr Fac Low Low Dat Pro Fac Upp Upp War Pro Fac Upp Upp Zhi Pro Res Res Qua Frg Combat Hostiles Destroyed 39 | . 7 4 1 . 2 1 . . . . 8 . . 3 1 . . . 4 8 . . . Melee 18 | . . . . . 2 . . . . . . . . 3 1 . . . 4 8 . . . Guns 11 | . 7 3 1 . . . . . . . . . . . . . . . . . . . . Cannons 1 | . . 1 . . . . . . . . . . . . . . . . . . . . . AOE 9 | . . . . . . 1 . . . . 8 . . . . . . . . . . . . Classes Destroyed 15 | 2 4 2 1 . 1 . 1 . 1 1 1 . . . 1 . . . . . . . . Worker 4 | 1 1 . . . . . . . . 1 . . . . . . . . . . . 1 . Builder 2 | . 1 . . . . . . . . . . . . . . . . . . . 1 . . Tunneler 3 | 3 . . . . . . . . . . . . . . . . . . . . . . . Hauler 4 | . . . . . . . . . . 1 . . . . 2 . . . . 1 . . . Minesweeper 1 | . . . . . . . 1 . . . . . . . . . . . . . . . . Operator 1 | . . . . . . . . . . . . . . . 1 . . . . . . . . Watcher 9 | . 2 . . . . . . . . 2 . . . . 2 . . . . 2 1 . . Swarmer 16 | . 3 . . . . 1 . . . . 4 . . 3 1 . . . 2 2 . . . Cutter 1 | . . . . . 1 . . . . . . . . . . . . . . . . . . Grunt 13 | . 4 . . . 1 . . . . . 2 . . . . . . . 1 5 . . . Brawler 2 | . . . . . . . . . . . 2 . . . . . . . . . . . . Sentry 2 | . . . 1 . . . . . . . . . . . . . . . . 1 . . . Programmer 1 | . . . . . . . . . . . . . . . . . . . 1 . . . . Artisan 1 | . . 1 . . . . . . . . . . . . . . . . . . . . . Subdweller 5 | . . 4 . . . 1 . . . . . . . . . . . . . . . . . Wizard 1 | . . . . . . . . . 1 . . . . . . . . . . . . . . Best Kill Streak 5 | 3 4 2 1 . 1 1 1 . . 1 4 . . 3 2 . . . 2 5 1 1 . Combat Bots Only 5 | . 3 2 1 . 1 1 . . . . 4 . . 3 1 . . . 2 5 . . . Max Kills in Single Turn 3 | 1 1 1 1 . 1 1 1 . 1 1 3 . . 1 1 . . . 1 1 1 1 . Gunslinging . | . . . . . . . . . . . . . . . . . . . . . . . . Exploded 3 | . . . . . . 1 . . . . 3 . . . . . . . . . . . . Melee 1 | . . . . . 1 . . . . . . . . 1 1 . . . 1 1 . . . Uniques/NPCs Destroyed . | . . . . . . . . . . . . . . . . . . . . . . . . Combat | -11 -10 -10 -8 -8 -6 -6 -6 -6 -5 -5 -5 -5 -5 -4 -4 -4 -4 -4 -3 -3 -2 -2 -2 -------- Run | Yrd Mat Sub Rec Scr Fac Low Low Dat Pro Fac Upp Upp War Pro Fac Upp Upp Zhi Pro Res Res Qua Frg Hostile Shots Fired 421 | . 23 61 . . . 4 1 . . 13 4 . . 15 17 10 2 . 9 25 23 7 207 Missed 189 | . 5 24 . . . 3 1 . . 12 . . . 6 6 7 . . 4 15 12 5 89 Hits 232 | . 18 37 . . . 1 . . . 1 4 . . 9 11 3 2 . 5 10 11 2 118 Melee 10 | . . . . . . . . . . . . . . . . . . . . . . . 10 Projectile 222 | . 18 37 . . . 1 . . . 1 4 . . 9 11 3 2 . 5 10 11 2 108 Critical Strikes 22 | . . 1 . . . . . . . . 1 . . . . . . . . . . . 20 Damage Taken 6638 | . 411 740 . . . 14 23 . 11 143 122 . . 141 245 71 54 . 184 592 387 93 3407 Core 1803 | . 59 136 . . . . . . . 12 . . . 13 37 11 . . 62 75 89 32 1277 Absorbed by Shields . | . . . . . . . . . . . . . . . . . . . . . . . . Regen/Repaired (Parts) 177 | . 122 . . . . . . . . . . . . . 55 . . . . . . . . Core Remaining (%) 83 | 100 . . . 22 . . . . 100 . . . . 97 . . . . 90 94 . . . Volleys Fired 154 | 7 61 56 1 . . 3 . . . . 6 . . . . . . . . . 18 2 . Largest 2 | 2 2 2 2 . . 1 . . . . 1 . . . . . . . . . 1 1 . Hottest 160 | 40 100 160 120 . . 43 . . . . 43 . . . . . . . . . 94 94 . Shots Fired 227 | 14 97 84 3 . . 3 . . . . 6 . . . . . . . . . 18 2 . Gun 124 | 14 70 37 3 . . . . . . . . . . . . . . . . . . . . Cannon 39 | . 2 17 . . . . . . . . . . . . . . . . . . 18 2 . Launcher 9 | . . . . . . 3 . . . . 6 . . . . . . . . . . . . Special 55 | . 25 30 . . . . . . . . . . . . . . . . . . . . . Kinetic 61 | 14 47 . . . . . . . . . . . . . . . . . . . . . . Thermal 137 | . 50 84 3 . . . . . . . . . . . . . . . . . . . . Explosive 9 | . . . . . . 3 . . . . 6 . . . . . . . . . . . . Electromagnetic 20 | . . . . . . . . . . . . . . . . . . . . . 18 2 . Robot Hit Streak 19 | 4 6 19 5 . . . . . . . 4 . . . . . . . . . 2 . . Robot Miss Streak 3 | 2 3 1 1 . . 2 . . . . 1 . . . . . . . . . 3 1 . Penetration Max . | . . . . . . . . . . . . . . . . . . . . . . . . Secondary Targets 2 | . 2 . . . . . . . . . . . . . . . . . . . . . . Max Gunslinging Chain 1 | . 1 . . . . . . . . . . . . . . . . . . . . . . Shots Hit Robots 159 | 7 47 35 1 . 4 . 1 . 2 7 4 . . 4 15 . . . 11 15 4 2 . Core Hits 74 | 4 15 8 1 . 2 4 1 . 1 3 15 . . 3 5 . . . 3 7 2 . . Critical Kills . | . . . . . . . . . . . . . . . . . . . . . . . . Critical Parts Destroyed . | . . . . . . . . . . . . . . . . . . . . . . . . Critical Strikes 6 | . 2 1 . . . . . . . . . . . . 1 . . . 1 1 . . . Burn 3 | . 2 1 . . . . . . . . . . . . . . . . . . . . . Sunder 3 | . . . . . . . . . . . . . . . 1 . . . 1 1 . . . Melee Attacks 193 | . . . . . 21 1 4 . 5 16 1 1 . 12 43 6 2 . 19 37 . 14 11 Impact . | . . . . . . . . . . . . . . . . . . . . . . . . Slashing 71 | . . . . . . . . . . 4 1 1 . 8 29 4 . . 5 18 . . 1 Piercing 67 | . . . . . 21 1 4 . 5 12 . . . . . . . . . . . 14 10 Entropic 55 | . . . . . . . . . . . . . . 4 14 2 2 . 14 19 . . . Sneak Attacks 14 | . . . . . 2 . 1 . 1 1 . . . . 2 . . . 2 3 . 2 . Combat Hostiles 3 | . . . . . . . . . . . . . . . . . . . 2 1 . . . Follow-up Attacks 8 | . . . . . . . . . . . . . . 2 5 . . . 1 . . . . Damage Inflicted 8042 | 78 686 612 22 . 180 254 80 . 64 327 913 . . 189 1184 . . . 1127 1749 259 306 12 Guns 1079 | 78 618 361 22 . . . . . . . . . . . . . . . . . . . . Cannons 504 | . 18 227 . . . . . . . . . . . . . . . . . . 259 . . Explosions 1217 | . 50 . . . . 254 . . . . 913 . . . . . . . . . . . . Melee 5206 | . . . . . 180 . 80 . 64 327 . . . 189 1184 . . . 1127 1749 . 306 . Ramming 12 | . . . . . . . . . . . . . . . . . . . . . . . 12 Kinetic 480 | 78 402 . . . . . . . . . . . . . . . . . . . . . . Thermal 868 | . 234 612 22 . . . . . . . . . . . . . . . . . . . . Explosive 1217 | . 50 . . . . 254 . . . . 913 . . . . . . . . . . . . Electromagnetic 259 | . . . . . . . . . . . . . . . . . . . . . 259 . . Impact . | . . . . . . . . . . . . . . . . . . . . . . . . Slashing 1048 | . . . . . . . . . . 143 . . . 189 614 . . . 36 66 . . . Piercing 814 | . . . . . 180 . 80 . 64 184 . . . . . . . . . . . 306 . Entropic 3344 | . . . . . . . . . . . . . . . 570 . . . 1091 1683 . . . Highest Corruption 16 | . 2 2 2 . . . . . . 1 . . . . 2 2 3 3 4 16 . . . Average Corruption 2 | . 2 2 2 . . . . . . 1 . . . . 2 2 2 3 3 4 . . . Corruption Purged 1 | . . . . . . . . . . 1 . . . . . . . . . . . . . Corruption Blocked . | . . . . . . . . . . . . . . . . . . . . . . . . Effects 73 | . 13 27 10 . . . . . . . . . . . 1 3 4 1 12 2 . . . Message Errors 18 | . 3 6 4 . . . . . . . . . . . . 2 1 . 2 . . . . Matter Fused 17 | . 2 9 2 . . . . . . . . . . . . . 2 . 2 . . . . Heat Flow Errors 10 | . 1 4 1 . . . . . . . . . . . . . . 1 3 . . . . Energy Discharges 8 | . 2 . 1 . . . . . . . . . . . . . 1 . 3 1 . . . Parts Rejected 1 | . . . . . . . . . . . . . . . . . . . 1 . . . . Parts Fused 2 | . . 1 1 . . . . . . . . . . . . . . . . . . . . Data Loss (minor) 8 | . 1 4 . . . . . . . . . . . . . 1 . . 1 1 . . . Data Loss (major) 4 | . 1 2 . . . . . . . . . . . . 1 . . . . . . . . Misfires 5 | . 3 1 1 . . . . . . . . . . . . . . . . . . . . Overload Shots . | . . . . . . . . . . . . . . . . . . . . . . . . Overflow Damage 1179 | . 10 . . . . . . . . 59 24 . . . 152 . . . 253 458 27 196 . Projectiles 27 | . . . . . . . . . . . . . . . . . . . . . 27 . . Explosions 34 | . 10 . . . . . . . . . 24 . . . . . . . . . . . . Melee 1118 | . . . . . . . . . . 59 . . . . 152 . . . 253 458 . 196 . Knockbacks . | . . . . . . . . . . . . . . . . . . . . . . . . Impact . | . . . . . . . . . . . . . . . . . . . . . . . . Kinetic . | . . . . . . . . . . . . . . . . . . . . . . . . Secondary . | . . . . . . . . . . . . . . . . . . . . . . . . Self-Inflicted Damage 254 | . 204 . . . . . . . . . 50 . . . . . . . . . . . . Shots 4 | . 2 . . . . . . . . . 2 . . . . . . . . . . . . Rammed . | . . . . . . . . . . . . . . . . . . . . . . . . Targets Rammed 2 | . . . . . . . . . . . . . . . . . . . . . . . 2 Kicked 2 | . . . . . . . . . . . . . . . . . . . . . . . 2 Crushed . | . . . . . . . . . . . . . . . . . . . . . . . . Highest Temperature 254 | . 254 179 193 . . . . . . . . . . . 14 22 . 215 233 126 176 . . Average Temperature 62 | . 76 62 68 . . . . . . . . . . . 6 11 . 116 122 18 104 . . Received Heat Transfer 672 | . 99 150 . . . . 12 . . 9 . . . . 33 36 . . 12 39 27 . 255 Effects 2 | . . . . . . . . . . . . . . . . . . . 2 . . . . Energy Bleed 2 | . . . . . . . . . . . . . . . . . . . 2 . . . . Siege Activations . | . . . . . . . . . . . . . . . . . . . . . . . . Martial Activations . | . . . . . . . . . . . . . . . . . . . . . . . . Shielding Activations . | . . . . . . . . . . . . . . . . . . . . . . . . Robots Disrupted . | . . . . . . . . . . . . . . . . . . . . . . . . Combat Hostiles . | . . . . . . . . . . . . . . . . . . . . . . . . Robots Corrupted . | . . . . . . . . . . . . . . . . . . . . . . . . Combat Hostiles . | . . . . . . . . . . . . . . . . . . . . . . . . Parts Fried 5 | . . . . . . . . . . . . . . . . . . . . 1 4 . . Impact Corruptions . | . . . . . . . . . . . . . . . . . . . . . . . . Robots Melted . | . . . . . . . . . . . . . . . . . . . . . . . . Combat Hostiles . | . . . . . . . . . . . . . . . . . . . . . . . . Parts Melted 4 | . . 4 . . . . . . . . . . . . . . . . . . . . . Heat Transferred 2124 | . 740 1359 25 . . . . . . . . . . . . . . . . . . . . Parts Sabotaged . | . . . . . . . . . . . . . . . . . . . . . . . . Parts Stolen . | . . . . . . . . . . . . . . . . . . . . . . . . Parts Stripped . | . . . . . . . . . . . . . . . . . . . . . . . . Power Chain Reactions . | . . . . . . . . . . . . . . . . . . . . . . . . Alert | -11 -10 -10 -8 -8 -6 -6 -6 -6 -5 -5 -5 -5 -5 -4 -4 -4 -4 -4 -3 -3 -2 -2 -2 ------- Run | Yrd Mat Sub Rec Scr Fac Low Low Dat Pro Fac Upp Upp War Pro Fac Upp Upp Zhi Pro Res Res Qua Frg Maximum Alert Level 3 | . . . . . . . . . . 3 . . . . 2 . . . . 1 . . . Low Security (%) 81 | 100 100 . 100 . 100 . . . . 46 . . . . 56 . . . . 17 100 100 100 Level 1 14 | . . . . . . . . . . 19 . . . . 35 . . . . 82 . . . Level 2 2 | . . . . . . . . . . 20 . . . . 8 . . . . . . . . Level 3 1 | . . . . . . . . . . 13 . . . . . . . . . . . . . Level 4 . | . . . . . . . . . . . . . . . . . . . . . . . . Level 5 . | . . . . . . . . . . . . . . . . . . . . . . . . High Security . | . . . . . . . . . . . . . . . . . . . . . . . . Max Security . | . . . . . . . . . . . . . . . . . . . . . . . . Peak Influence 851 | 10 81 . 112 . 109 . . . . 851 . . . . 455 . . . . 379 198 82 149 Initial 379 | . . . 67 . . . . . . 379 . . . . 40 . . . . 52 173 72 . Average 104 | 1 20 . 52 . 57 . . . . 280 . . . . 147 . . . . 278 159 36 50 Influence Increases 6806 | 20 278 185 278 . 371 192 107 . 274 1325 316 . . 322 1058 109 139 . 422 750 205 141 314 Destroy 0b10 Robot/C 2860 | . 140 120 80 . 160 140 60 . 160 360 240 . . 220 320 60 100 . 280 340 80 . . Destroy 0b10 Robot/NC 215 | 20 20 . . . . . 5 . 10 55 . . . 10 55 . . . . 20 15 5 . Destroy Leader 422 | . 34 . . . 40 20 10 . 10 72 10 . . 20 58 10 10 . 30 76 22 . . Allied During Kill 935 | . . 65 40 . 66 32 32 . 34 186 66 . . 57 53 24 29 . 112 114 25 . . Successful Hack 207 | . 34 . 36 . 58 . . . . . . . . . 29 . . . . 17 15 10 8 Select Force Hacks 120 | . . . 120 . . . . . . . . . . . . . . . . . . . . Disable Machine 210 | . 30 . . . 15 . . . . 60 . . . . 60 . . . . . . 45 . Anti-Garrison Action 150 | . . . . . . . . . . . . . . . 150 . . . . . . . . Destroy Structure 352 | . 20 . 2 . 17 . . . . 82 . . . . 108 . . . . 78 3 21 21 Advance Influence 300 | . . . . . . . . . . 300 . . . . . . . . . . . . . Partial Spotted 270 | . . . . . . . . . . 60 . . . . 45 . . . . 45 30 30 60 Lose Combat Pursuer 765 | . . . . . 15 . . . 60 150 . . . 15 180 15 . . . 60 15 30 225 Influence Decreases 6806 | 20 278 44 392 27 312 241 55 62 148 1391 220 110 46 257 1072 120 110 69 344 520 385 269 314 Entered New Map 673 | . . . 74 27 . 23 2 62 . 47 23 30 46 . 25 20 8 69 . 26 135 56 . Time Decay 3009 | 20 278 4 318 . 232 198 53 . 74 199 147 40 . 160 241 80 82 . 214 254 110 156 149 Lost Part 255 | . . . . . . . . . . . 10 . . . . . . . 10 40 10 20 165 Lost Ally 1413 | . . 40 . . 80 20 . . 74 165 40 40 . 97 330 20 20 . 120 200 130 37 . Purge Threat 1456 | . . . . . . . . . . 980 . . . . 476 . . . . . . . . Squads Dispatched 58 | . 2 . . . 5 . . . . 10 . . . . 14 . . . . 8 3 3 13 Investigation 32 | . 1 . . . 3 . . . . 7 . . . . 7 . . . . 3 2 1 8 Extermination 8 | . . . . . 1 . . . . . . . . . 2 . . . . 1 1 2 1 Reinforcement 14 | . 1 . . . 1 . . . . 2 . . . . 2 . . . . 4 . . 4 Assault 2 | . . . . . . . . . . . . . . . 2 . . . . . . . . Garrison 2 | . . . . . . . . . . 1 . . . . 1 . . . . . . . . Intercept . | . . . . . . . . . . . . . . . . . . . . . . . . Searches Triggered . | . . . . . . . . . . . . . . . . . . . . . . . . Data Miner Redirects 2 | . . . . . . . . . . . . . . . . . . . . . 1 . 1 Construction Impeded 1 | . . . . . . . . . . . . . . . 1 . . . . . . . . Haulers Reinforced 3 | . . . . . . . . . . 2 . . . . . . . . . 1 . . . Active Scanning Responses . | . . . . . . . . . . . . . . . . . . . . . . . . Cargo Convoy Interrupts . | . . . . . . . . . . . . . . . . . . . . . . . . Stealth | -11 -10 -10 -8 -8 -6 -6 -6 -6 -5 -5 -5 -5 -5 -4 -4 -4 -4 -4 -3 -3 -2 -2 -2 --------- Run | Yrd Mat Sub Rec Scr Fac Low Low Dat Pro Fac Upp Upp War Pro Fac Upp Upp Zhi Pro Res Res Qua Frg Distress Signals 19 | . 2 . . . 1 . . . . 2 . . . . 4 . . . . 2 1 1 6 Communications Jammed . | . . . . . . . . . . . . . . . . . . . . . . . . Distress Signals . | . . . . . . . . . . . . . . . . . . . . . . . . Times Spotted 248 | . 12 16 1 . 8 4 3 . 10 34 13 . . 11 21 3 5 . 7 21 7 10 62 Peak Tracking Total 23 | . 6 3 1 . 4 3 3 . 8 7 7 . . 6 7 3 5 . 3 4 2 4 23 Tactical Retreats 33 | . . 1 . . 1 . . . 3 5 . . . 1 7 1 . . . 3 1 2 8 Traps | -11 -10 -10 -8 -8 -6 -6 -6 -6 -5 -5 -5 -5 -5 -4 -4 -4 -4 -4 -3 -3 -2 -2 -2 ------- Run | Yrd Mat Sub Rec Scr Fac Low Low Dat Pro Fac Upp Upp War Pro Fac Upp Upp Zhi Pro Res Res Qua Frg Traps Triggered 9 | . 2 . . . . . . . . 1 . . . . . . . . . 2 . . 4 Indirectly . | . . . . . . . . . . . . . . . . . . . . . . . . Trap Hack Attempts . | . . . . . . . . . . . . . . . . . . . . . . . . Triggered . | . . . . . . . . . . . . . . . . . . . . . . . . Disarmed . | . . . . . . . . . . . . . . . . . . . . . . . . Reprogrammed . | . . . . . . . . . . . . . . . . . . . . . . . . Reused . | . . . . . . . . . . . . . . . . . . . . . . . . Traps Extracted . | . . . . . . . . . . . . . . . . . . . . . . . . Installed 5 | . . . . . . . 4 . . . . . . . . . 1 . . . . . . Triggered . | . . . . . . . . . . . . . . . . . . . . . . . . Most Traps Carried 1 | . . . . 1 1 1 1 1 1 1 1 1 1 1 1 1 1 . . . . . . Objects Rigged 2 | . . . . . . . . . . . . . . . 2 . . . . . . . . Machines | -11 -10 -10 -8 -8 -6 -6 -6 -6 -5 -5 -5 -5 -5 -4 -4 -4 -4 -4 -3 -3 -2 -2 -2 ---------- Run | Yrd Mat Sub Rec Scr Fac Low Low Dat Pro Fac Upp Upp War Pro Fac Upp Upp Zhi Pro Res Res Qua Frg Machines Disabled 21 | . 2 3 . . 1 . . . 1 4 2 . . . 5 . . . . . . 3 . Max in Single Turn 2 | . 2 1 . . 1 . . . . 1 1 . . . . . . . . . . 1 . Garrison Access 4 | . . . . . . . . . . 2 . . . . 2 . . . . . . . . Machines Repaired . | . . . . . . . . . . . . . . . . . . . . . . . . Machines Dismantled . | . . . . . . . . . . . . . . . . . . . . . . . . Machines Sabotaged . | . . . . . . . . . . . . . . . . . . . . . . . . Overloaded Fab Kills . | . . . . . . . . . . . . . . . . . . . . . . . . Hacking | -11 -10 -10 -8 -8 -6 -6 -6 -6 -5 -5 -5 -5 -5 -4 -4 -4 -4 -4 -3 -3 -2 -2 -2 --------- Run | Yrd Mat Sub Rec Scr Fac Low Low Dat Pro Fac Upp Upp War Pro Fac Upp Upp Zhi Pro Res Res Qua Frg Machines Accessed 116 | . 7 2 10 4 11 1 . 3 . 13 . . 6 . 22 . . 4 . 9 6 6 12 Terminals 50 | . 5 . 6 . 6 . . . . 4 . . . . 12 . . . . 6 2 5 4 Fabricators 16 | . . . . . 2 . . . . 3 . . . . 4 . . . . 1 2 . 4 Repair Stations 4 | . 1 . . . 1 . . . . . . . . . 1 . . . . 1 . . . Recycling Units 17 | . 1 . 4 . 1 . . . . 3 . . . . 3 . . . . 1 1 . 3 Scanalyzers 5 | . . . . . . . . . . 1 . . . . 1 . . . . . 1 1 1 Garrison Access 4 | . . . . . 1 . . . . 2 . . . . 1 . . . . . . . . Total Hacks 440 | . 20 6 20 13 26 1 . 28 . 65 . . 18 . 89 . . 17 . 50 23 26 38 Successful 348 | . 10 6 11 13 10 1 . 28 . 52 . . 18 . 77 . . 17 . 42 19 18 26 Failed 92 | . 10 . 9 . 16 . . . . 13 . . . . 12 . . . . 8 4 8 12 Catastrophic 8 | . . . 2 . 2 . . . . 2 . . . . . . . . . . . 2 . Database Lockouts . | . . . . . . . . . . . . . . . . . . . . . . . . Manual 206 | . 9 . 13 . 17 . . . . 36 . . 1 . 54 . . . . 28 11 21 16 Terminals 235 | . 13 . 16 . 14 . . . . 41 . . . . 61 . . . . 39 9 25 17 Fabricators 61 | . . . . . 7 . . . . 9 . . . . 16 . . . . 8 8 . 13 Repair Stations 11 | . 5 . . . 2 . . . . . . . . . 2 . . . . 2 . . . Recycling Units 21 | . 2 . 4 . 1 . . . . 4 . . . . 4 . . . . 1 1 . 4 Scanalyzers 23 | . . . . . . . . . . 8 . . . . 5 . . . . . 5 1 4 Garrison Access 6 | . . . . . 2 . . . . 3 . . . . 1 . . . . . . . . Terminal Hacks 190 | . 5 6 5 13 3 1 . 28 . 23 . . 18 . 32 . . 17 . 20 3 9 7 Record 37 | . . 5 . 12 . . . 6 . . . . 6 . . . . 5 . 1 1 1 . Part Schematic 24 | . . . . . . . . 13 . 3 . . . . 2 . . 4 . 2 . . . Robot Schematic 6 | . . . . . . . . 6 . . . . . . . . . . . . . . . Robot Analysis 5 | . . . . . . . . . . . . . . . . . . 4 . 1 . . . Prototype ID Bank 30 | . 4 . 3 . 1 . . 3 . 3 . . 10 . 1 . . 4 . . . 1 . Open Door 3 | . . . . . . 1 . . . . . . 2 . . . . . . . . . . Level Access Points 2 | . . . . . . . . . . 1 . . . . . . . . . 1 . . . Branch Access Points 6 | . . . . . 1 . . . . 1 . . . . 2 . . . . 1 1 . . Machine Index 4 | . . . . . . . . . . 1 . . . . 1 . . . . . 1 . 1 Terminal Index 4 | . 1 . 1 . 1 . . . . . . . . . . . . . . . . 1 . Recycling Unit Index 2 | . . . 1 . . . . . . . . . . . . . . . . . . 1 . Alert Level 8 | . . . . . . . . . . 2 . . . . 3 . . . . 2 . 1 . Unreport Threat 8 | . . . . . . . . . . 4 . . . . 4 . . . . . . . . Locate Traps 5 | . . . . . . . . . . . . . . . 2 . . . . 1 . 2 . Dispatch Records 13 | . . . . . . . . . . 3 . . . . 5 . . . . 3 . 1 1 Recall Investigation 9 | . . . . . . . . . . 3 . . . . 4 . . . . 2 . . . Recall Extermination 4 | . . . . . . . . . . . . . . . 2 . . . . 1 . . 1 Recall Reinforcements 7 | . . . . . . . . . . . . . . . 3 . . . . 3 . . 1 Recall Assault 1 | . . . . . . . . . . . . . . . 1 . . . . . . . . Hauler Manifests 1 | . . . . . . . . . . . . . . . . . . . . 1 . . . Registered Components 2 | . . . . . . . . . . 1 . . . . 1 . . . . . . . . Registered Prototypes 4 | . . . . . . . . . . 1 . . . . 1 . . . . . . 1 1 Zone Layout 2 | . . . . . . . . . . . . . . . . . . . . 1 . . 1 Proto ID Catalog 3 | . . 1 . 1 . . . . . . . . . . . . . . . . . . 1 Fabricator Hacks 31 | . . . . . 1 . . . . 7 . . . . 9 . . . . 2 4 . 8 Network Status 4 | . . . . . 1 . . . . 1 . . . . 1 . . . . 1 . . . Load Schematic 14 | . . . . . . . . . . 3 . . . . 4 . . . . 1 2 . 4 Build 13 | . . . . . . . . . . 3 . . . . 4 . . . . . 2 . 4 Repair Station Hacks 7 | . 3 . . . 1 . . . . . . . . . 2 . . . . 1 . . . Scan Component 5 | . 2 . . . 1 . . . . . . . . . 1 . . . . 1 . . . Repair 2 | . 1 . . . . . . . . . . . . . 1 . . . . . . . . Recycling Unit Hacks 3 | . . . . . . . . . . 1 . . . . 1 . . . . . . . 1 Report Inventory 3 | . . . . . . . . . . 1 . . . . 1 . . . . . . . 1 Scanalyzer 20 | . . . . . . . . . . 8 . . . . 5 . . . . . 4 . 3 Insert Component 8 | . . . . . . . . . . 4 . . . . 1 . . . . . 2 . 1 Analyze 12 | . . . . . . . . . . 4 . . . . 4 . . . . . 2 . 2 Garrison Access Hacks 3 | . . . . . . . . . . 2 . . . . 1 . . . . . . . . Seal Access 3 | . . . . . . . . . . 2 . . . . 1 . . . . . . . . Unauthorized Hacks 94 | . 2 . 6 . 5 . . . . 11 . . . . 27 . . . . 19 8 9 7 Terminals 60 | . 2 . 2 . 2 . . . . 6 . . . . 19 . . . . 14 4 8 3 Track 16 | . . . . . . . . . . . . . . . 7 . . . . 5 1 2 1 Assimilate 8 | . . . . . . . . . . . . . . . 2 . . . . 2 1 3 . Botnet 30 | . 2 . 2 . 2 . . . . 5 . . . . 8 . . . . 5 2 2 2 Detonate 1 | . . . . . . . . . . . . . . . 1 . . . . . . . . Disrupt 1 | . . . . . . . . . . . . . . . . . . . . 1 . . . Operators 4 | . . . . . . . . . . 1 . . . . 1 . . . . 1 . 1 . Fabricators 14 | . . . . . 2 . . . . 2 . . . . 5 . . . . 3 2 . . Report 2 | . . . . . 1 . . . . . . . . . . . . . . 1 . . . Prioritize 8 | . . . . . . . . . . 2 . . . . 3 . . . . 1 2 . . Liberate 2 | . . . . . 1 . . . . . . . . . 1 . . . . . . . . Fabnet 1 | . . . . . . . . . . . . . . . 1 . . . . . . . . Recompile 1 | . . . . . . . . . . . . . . . . . . . . 1 . . . Repair Stations 1 | . . . . . . . . . . . . . . . . . . . . 1 . . . Mechanics 1 | . . . . . . . . . . . . . . . . . . . . 1 . . . Recycling Units 16 | . . . 4 . 1 . . . . 3 . . . . 3 . . . . 1 1 . 3 Tunnel 4 | . . . 4 . . . . . . . . . . . . . . . . . . . . Fedlink 12 | . . . . . 1 . . . . 3 . . . . 3 . . . . 1 1 . 3 Scanalyzers 3 | . . . . . . . . . . . . . . . . . . . . . 1 1 1 Researchers 3 | . . . . . . . . . . . . . . . . . . . . . 1 1 1 Garrison Access . | . . . . . . . . . . . . . . . . . . . . . . . . Data Cores Recovered 2 | . . . . . . . . . . . . . . . 2 . . . . . . . . Used 1 | . . . . . . . . . . . . . . . 1 . . . . . . . . Hacking Detections 73 | . 7 . 6 . 10 . . . . 8 . . . . 17 . . . . 7 5 4 9 Full Trace Events 17 | . 1 . 1 . 1 . . . . 3 . . . . 4 . . . . . 1 1 5 Feedback Events 1 | . . . . . . . . . . . . . . . . . . . . . . 1 . Hackware Fried 1 | . . . . . . . . . . . . . . . . . . . . . . 1 . Feedback Blocked . | . . . . . . . . . . . . . . . . . . . . . . . . Robot Schematics Acquired 6 | . . . . . . . . 6 . . . . . . . . . . . . . . . Robots Built 6 | . . . . . . . . . . . . . . . 6 . . . . . . . . Authchips . | . . . . . . . . . . . . . . . . . . . . . . . . Time 294 | . . . . . . . . . . . . . . . 294 . . . . . . . . Total Robot Build Rating 36 | . . . . . . . . . . . . . . . 36 . . . . . . . . Part Schematics Acquired 29 | . . . . . . . . 13 . 6 . . . . 3 . . 4 . 2 1 . . Parts Built 9 | . . . . . . . . . . 3 . . . . . . . . . . 2 . 4 Authchips 1 | . . . . . . . . . . . . . . . . . . . . . 1 . . Time 603 | . . . . . . . . . . 215 . . . . . . . . . . 92 . 296 Total Part Build Rating 70 | . . . . . . . . . . 16 . . . . . . . . . . 18 . 36 Parts Repaired 2 | . 1 . . . . . . . . . . . . . 1 . . . . . . . . Time 39 | . 26 . . . . . . . . . . . . . 13 . . . . . . . . Parts Recycled . | . . . . . . . . . . . . . . . . . . . . . . . . Recycled Matter . | . . . . . . . . . . . . . . . . . . . . . . . . Retrieved Matter . | . . . . . . . . . . . . . . . . . . . . . . . . Retrieved Components . | . . . . . . . . . . . . . . . . . . . . . . . . Parts Scanalyzed 6 | . . . . . . . . . . 3 . . . . 1 . . . . . 1 . 1 Part Schematics Acquired 5 | . . . . . . . . . . 3 . . . . 1 . . . . . 1 . . Parts Damaged . | . . . . . . . . . . . . . . . . . . . . . . . . Bothacking | -11 -10 -10 -8 -8 -6 -6 -6 -6 -5 -5 -5 -5 -5 -4 -4 -4 -4 -4 -3 -3 -2 -2 -2 ------------ Run | Yrd Mat Sub Rec Scr Fac Low Low Dat Pro Fac Upp Upp War Pro Fac Upp Upp Zhi Pro Res Res Qua Frg Used RIF Installer . | . . . . . . . . . . . . . . . . . . . . . . . . Robots Hacked 3 | . . . . . . . . . . . . . . . . . . . 1 1 . 1 . Non-combat . | . . . . . . . . . . . . . . . . . . . . . . . . Combat 3 | . . . . . . . . . . . . . . . . . . . 1 1 . 1 . Robot Hacks Applied . | . . . . . . . . . . . . . . . . . . . . . . . . Relay Couplers Released 3 | . . . . . . . . . . 3 . . . . . . . . . . . . . Machine Destruction 3 | . . . . . . . . . . 3 . . . . . . . . . . . . . Fabnet Peak Effective % 3 | . . . . . . . . . . . . . . . . . . . 3 3 1 1 1 Autooverrided 3 | . . . . . . . . . . . . . . . . . . . 1 1 . 1 . Robots Rewired 2 | . . . . . . . . . . . 2 . . . . . . . . . . . . Allies Hacked 2 | . . . . . . . . . . . . 1 . . 1 . . . . . . . . Hacks Repelled . | . . . . . . . . . . . . . . . . . . . . . . . . Allies | -11 -10 -10 -8 -8 -6 -6 -6 -6 -5 -5 -5 -5 -5 -4 -4 -4 -4 -4 -3 -3 -2 -2 -2 -------- Run | Yrd Mat Sub Rec Scr Fac Low Low Dat Pro Fac Upp Upp War Pro Fac Upp Upp Zhi Pro Res Res Qua Frg Total Allies 98 | . . 13 . . . . 4 . 4 11 9 . . 7 17 5 2 . 7 9 7 3 . Largest Group 10 | . . 10 9 9 9 5 4 4 4 5 6 6 4 5 5 4 4 4 5 5 4 2 . Highest-Rated Group 378 | . . 189 170 170 170 96 324 319 319 365 378 378 323 366 335 320 320 319 345 333 253 115 . Highest-Rated Ally 89 | . . 20 20 20 20 20 81 81 81 81 81 81 81 81 81 81 81 81 81 81 81 89 . Total Orders 2 | . . . . . . . . . . . . . . . . . . . . . . 2 . STAY 1 | . . . . . . . . . . . . . . . . . . . . . . 1 . FOLLOW 1 | . . . . . . . . . . . . . . . . . . . . . . 1 . Ally Attacks 642 | . . 34 22 . 40 12 16 . 46 71 35 8 . 55 124 26 13 . 53 51 33 3 . Total Damage 17618 | . . 631 334 . 738 202 390 . 1150 3059 816 23 . 1079 4067 617 209 . 1647 1896 725 35 . Kills 142 | . . 9 3 . 6 6 3 . 11 27 6 . . 11 24 3 5 . 11 12 5 . . Allies Corrupted 4 | . . . . . 1 . . . . . . . . . 2 . . . . . . 1 . Allies Melted 3 | . . . . . . . . . 1 . . . . . . . . . . . 1 . 1 Intel | -11 -10 -10 -8 -8 -6 -6 -6 -6 -5 -5 -5 -5 -5 -4 -4 -4 -4 -4 -3 -3 -2 -2 -2 ------- Run | Yrd Mat Sub Rec Scr Fac Low Low Dat Pro Fac Upp Upp War Pro Fac Upp Upp Zhi Pro Res Res Qua Frg Active Infowar (turns) 7688 | 29 274 542 . 1070 566 405 231 37 193 466 329 89 222 312 617 174 187 72 441 540 226 354 312 Sensors 6587 | . . . . 1070 566 405 229 37 193 466 329 89 222 312 617 174 187 72 441 540 213 306 119 Structural 6340 | . 53 542 . . 562 405 231 37 193 466 329 89 222 312 617 174 187 53 441 540 226 354 307 Seismic 250 | 29 221 . . . . . . . . . . . . . . . . . . . . . . Cloaking 2141 | . . . . . . . . . . . . . 4 5 223 91 75 72 423 512 103 354 279 Robot Analysis Total 5 | . . . . . . . . . . . . . . . . . . 4 . 1 . . . Derelict Logs Recovered 11 | . . 1 . 3 . 1 1 . 1 . 2 . . 1 . 1 . . . . . . . Drone Launches . | . . . . . . . . . . . . . . . . . . . . . . . . Drone Recoveries . | . . . . . . . . . . . . . . . . . . . . . . . . Exploration | -11 -10 -10 -8 -8 -6 -6 -6 -6 -5 -5 -5 -5 -5 -4 -4 -4 -4 -4 -3 -3 -2 -2 -2 ------------- Run | Yrd Mat Sub Rec Scr Fac Low Low Dat Pro Fac Upp Upp War Pro Fac Upp Upp Zhi Pro Res Res Qua Frg Turns Passed 11320 | 128 992 2328 856 1164 566 405 231 37 193 466 329 89 222 322 617 174 187 72 441 540 226 354 381 Spaces Moved 15333 | 63 447 1519 554 1027 1036 481 458 77 352 1004 545 219 475 656 1557 506 488 140 460 1016 585 778 890 Core 8 | 6 . . . . . . . . . . . . . . . . . . . . . . 2 Treads 512 | 57 447 8 . . . . . . . . . . . . . . . . . . . . . Legs 24 | . . . . . . . . . . . . . . . . . . . . . . . 24 Wheels 3092 | . . 1511 554 1027 . . . . . . . . . . . . . . . . . . . Hover . | . . . . . . . . . . . . . . . . . . . . . . . . Flight 11697 | . . . . . 1036 481 458 77 352 1004 545 219 475 656 1557 506 488 140 460 1016 585 778 864 Fastest Speed 17 | 50 160 130 110 110 40 40 40 40 40 34 34 34 34 30 30 27 30 30 27 23 23 23 17 Average Speed 56 | 149 161 134 142 110 40 40 40 40 40 38 36 36 39 37 30 29 30 30 29 26 25 25 23 Slowest Speed 240 | 160 240 240 155 110 40 80 80 40 40 40 40 40 40 40 30 30 30 30 30 27 26 26 80 Overloaded Moves 248 | . . . . . . . . . . . . . . . . 7 . . 11 79 9 36 106 Propulsion Burnouts . | . . . . . . . . . . . . . . . . . . . . . . . . Robots Hopped 80 | . . . . . 1 . . . 1 6 1 . 2 . 24 . . . . 8 14 5 18 Potential Cave-ins . | . . . . . . . . . . . . . . . . . . . . . . . . Cave-ins Triggered 1 | . . . . . . . . . . . . . . . . . . . . 1 . . . Teleports 1 | . . . . . . . . . . . . . . . . . . . . . . . 1 Exploration Rate (%) 57 | 4 77 87 97 84 33 71 58 68 46 31 61 37 88 65 53 71 59 60 54 31 15 72 53 Regions Visited 23 Branch Regions 17 Pre-discovered Areas 11 | . . 1 4 . . . . 1 . 1 . . . 1 . . . 3 . . . . . Known Exits Taken 18 | . . . . . 1 1 1 1 1 1 1 1 1 1 1 1 1 1 1 1 1 1 . Unknown Exits Taken 5 | 1 1 1 1 1 . . . . . . . . . . . . . . . . . . . Scrap Searched 18 | . . 5 . 4 . 1 1 . . . 1 1 . . . 2 2 . 1 . . . . Spaces Dug 84 | . 1 6 . . 14 1 1 . 1 8 . 1 . . 15 4 . . 3 15 . 7 7 Terrain Destroyed 205 | . 21 6 . . 14 40 1 . 1 8 62 1 . . 15 4 . . 3 15 . 7 7 Melee 77 | . . . . . 14 1 1 . 1 8 . 1 . . 15 4 . . 3 15 . 7 7 Projectile 8 | . 2 6 . . . . . . . . . . . . . . . . . . . . . AOE 120 | . 19 . . . . 39 . . . . 62 . . . . . . . . . . . . Terrain Rammed . | . . . . . . . . . . . . . . . . . . . . . . . . Walls Destroyed . | . . . . . . . . . . . . . . . . . . . . . . . . Machines Disabled . | . . . . . . . . . . . . . . . . . . . . . . . . Actions | -11 -10 -10 -8 -8 -6 -6 -6 -6 -5 -5 -5 -5 -5 -4 -4 -4 -4 -4 -3 -3 -2 -2 -2 --------- Run | Yrd Mat Sub Rec Scr Fac Low Low Dat Pro Fac Upp Upp War Pro Fac Upp Upp Zhi Pro Res Res Qua Frg Total 17341 | 79 571 1654 623 1060 1158 684 498 82 398 1051 663 226 508 722 1634 520 525 168 742 1239 627 896 1013 Wait 1394 | . 37 28 52 15 68 194 23 6 39 16 106 6 25 52 44 9 31 15 260 192 32 87 57 Move 15164 | 62 446 1518 553 1026 1033 480 457 76 349 992 542 218 470 655 1513 505 487 139 459 999 558 769 858 Hop 66 | . . . . . 1 . . . 1 5 1 . 2 . 19 . . . . 8 12 3 14 Pick Up 75 | 3 9 10 9 4 6 1 2 . 1 2 1 . 1 3 9 . 1 3 . 2 4 3 1 Fast Attach 75 | 7 4 9 . 5 4 1 2 . 2 7 . . 5 . 1 . . 3 2 2 . 6 15 Attach 35 | . . 1 1 . 10 1 1 . . 2 . . . 1 4 . . . 1 3 2 1 7 Detach 17 | . 1 4 . . 1 1 . . . 4 . 1 . . 1 . . . 1 . . 1 2 Swap 43 | . 7 14 1 3 1 . 2 . . . 1 . . . 2 2 2 3 2 . . 2 1 Drop 93 | . 6 14 6 7 13 2 3 . 1 7 . . 5 2 6 . 1 5 . 1 1 8 5 Fire 154 | 7 61 56 1 . . 3 . . . . 6 . . . . . . . . . 18 2 . Melee 173 | . . . . . 21 1 4 . 5 16 1 1 . 9 35 4 2 . 17 32 . 14 11 Ram . | . . . . . . . . . . . . . . . . . . . . . . . . Kick 2 | . . . . . . . . . . . . . . . . . . . . . . . 2 Crush . | . . . . . . . . . . . . . . . . . . . . . . . . Escape Stasis 40 | . . . . . . . . . . . . . . . . . . . . . . . 40 Rewire 5 | . . . . . . . . . . . 5 . . . . . . . . . . . . Trap 5 | . . . . . . . 4 . . . . . . . . . 1 . . . . . . Miscellaneous . | . . . . . . . . . . . . . . . . . . . . . . . . Route ------- -11/Scrapyard -10/Materials (discovered 5 exits: [*Mat x3] / [*Min] / *Sub) -10/Subcaves (discovered 2 exits: [*Mat] / *Rec) -8/Recycling (discovered 2 exits: *Fac / *Scr) -8/Scraptown (discovered 2 exits: *Fac x2) -6/Factory (discovered 2 exits: *Low x2) -6/Lower Caves -6/Lower Caves -6/Data Miner -5/Proximity Caves -5/Factory (discovered 8 exits: *Fac x4 / *Upp x2 / Ext x2) -5/Upper Caves -5/Upper Caves -5/Warlord -4/Proximity Caves -4/Factory (discovered 3 exits: *Upp x2 / Arm) -4/Upper Caves -4/Upper Caves (discovered 2 exits: *Res / *Zhi) -4/Zhirov -3/Proximity Caves -3/Research (discovered 5 exits: *Res x3 / Tes x2) -2/Research (discovered 2 exits: *Qua x2) -2/Quarantine (discovered 3 exits: *Acc / [*Sec] / *Frg) -2/Protoforge (discovered 1 exit: *Acc) History --------- Turn | Location | Event 11 | -11/Scrapyard | Discovered new exit (range 15) 129 | -11/Scrapyard | Entered Materials 300 | -10/Materials | Build established: Mutant 374 | -10/Materials | Discovered new exit (range 15) 419 | -10/Materials | Discovered new exit (range 6) 443 | -10/Materials | Discovered new exit (range 13) 997 | -10/Materials | Repaired Lgt. Treads 1036 | -10/Materials | Discovered new exit (range 8) 1108 | -10/Materials | Discovered new exit (range 4) 1121 | -10/Materials | Entered Subcaves 1122 | -10/Subcaves | Approached by a straggling Scientist 1506 | -10/Subcaves | Build established: Scavenger-Mutant 1540 | -10/Subcaves | A swath of the cavern ceiling suddenly collapsed 1576 | -10/Subcaves | Discovered new exit (range 4) 1597 | -10/Subcaves | Visited triangular shrine 1606 | -10/Subcaves | Found Prototype Device 1606 | -10/Subcaves | Identified V3-11A's Pendant 1611 | -10/Subcaves | Befriended Subdweller 1754 | -10/Subcaves | Shifting Twisted Machinery released Sub. Laser 1786 | -10/Subcaves | Shifting Twisted Machinery released Sub. Monowheel 1849 | -10/Subcaves | A swath of the cavern ceiling suddenly collapsed 1942 | -10/Subcaves | Visited 4L-MR0's lab 1964 | -10/Subcaves | Found Flightbrick 2046 | -10/Subcaves | Befriended Subdweller 2046 | -10/Subcaves | Befriended Subdweller 2070 | -10/Subcaves | Build established: Mutant 2133 | -10/Subcaves | A Subdweller sparked back to life 2133 | -10/Subcaves | A Subdweller sparked back to life 2133 | -10/Subcaves | A Subdweller sparked back to life 2134 | -10/Subcaves | Core integrity fell below 50% 2136 | -10/Subcaves | Befriended Subdweller 2136 | -10/Subcaves | Befriended Subdweller 2136 | -10/Subcaves | Befriended Subdweller 2206 | -10/Subcaves | Befriended Subdweller 2208 | -10/Subcaves | Learned Materials interactive machine intel 2756 | -10/Subcaves | Curiously followed by a Cobbler waking with a query about "LVR3C" 2832 | -10/Subcaves | Visited Clippyterm 2836 | -10/Subcaves | Learned location of Extension (-5) 2836 | -10/Subcaves | Learned Factory trap positions 2997 | -10/Subcaves | Ambushed by Subdwellers from Twisted Machinery 3001 | -10/Subcaves | Befriended Subdweller 3001 | -10/Subcaves | Befriended Subdweller 3011 | -10/Subcaves | Befriended Subdweller 3016 | -10/Subcaves | Befriended Subdweller 3041 | -10/Subcaves | Befriended Subdweller 3414 | -10/Subcaves | Discovered new exit (range 14) 3431 | -10/Subcaves | Befriended Subdweller 3449 | -10/Subcaves | Entered Recycling 3449 | -8/Recycling | Accompanied by 9 allies 3519 | -8/Recycling | Scanned before Scraplab entrance 3939 | -8/Recycling | Discovered new exit (range 14) 4270 | -8/Recycling | Entered Scraplab 4279 | -8/Recycling | Discovered new exit (range 3) 4305 | -8/Recycling | Entered Scraptown 4305 | -8/Scraptown | Accompanied by 9 allies 4305 | -8/Scraptown | System corruption cleaned by C-Scrubber 4352 | -8/Scraptown | Delivered V3-11A's Pendant to T0-NE2 in exchange for information 4466 | -8/Scraptown | Discovered new exit (range 13) 4484 | -8/Scraptown | Scanned Subdweller tech in exchange for log data 4488 | -8/Scraptown | Learned Research interactive machine intel 4489 | -8/Scraptown | Learned Research stockpile data 4545 | -8/Scraptown | Visited UFD Registry 4545 | -8/Scraptown | Registered with UFD as "Electrogrid" 4558 | -8/Scraptown | Visited CPS Storage 4567 | -8/Scraptown | Visited IN-MT5's Study 4585 | -8/Scraptown | Visited The Evicted 4600 | -8/Scraptown | Visited Assassins FH 4608 | -8/Scraptown | Visited Shadow of the Wyrm 4631 | -8/Scraptown | Visited TADAMA 4645 | -8/Scraptown | Visited Cyclists 4653 | -8/Scraptown | Entered Cyclist Reading Room 4692 | -8/Scraptown | Visited Curators Association 4742 | -8/Scraptown | Visited Science Guys 4781 | -8/Scraptown | Visited Abandonware Association 4789 | -8/Scraptown | Learned abandonware demo "OVRCLOCK.EXE" 4794 | -8/Scraptown | Learned abandonware demo "TRNCOAT.EXE" 4832 | -8/Scraptown | Delivered Scrap Shield to a Scientist 4898 | -8/Scraptown | Visited Observation Area 4913 | -8/Scraptown | Visited Scrapoid Pod Storage 4930 | -8/Scraptown | Visited Research Penetration Think Tank 4949 | -8/Scraptown | Visited Junk Repository 4975 | -8/Scraptown | Visited Science Testing Area 4995 | -8/Scraptown | Visited DA-N13 Charitable Foundation 4999 | -8/Scraptown | Found DCF Scrap (26 items) 5050 | -8/Scraptown | Visited Junk Cannon Lab 5133 | -8/Scraptown | Heard Great Nut preacher, LISTEN AND RECITE! 5386 | -8/Scraptown | Met Optimus 5386 | -8/Scraptown | Accepted into 0bPrime 5447 | -8/Scraptown | Discovered new exit (range 3) 5469 | -8/Scraptown | Entered Factory 5469 | -6/Factory | Accompanied by 9 allies 5469 | -6/Factory | Evolved 8 slots: Propulsion x2, Utility x6 5470 | -6/Factory | Loaded intel: 112 trap records 5472 | -6/Factory | Attached Flightbrick, gained temporary slots: Utility x3 5494 | -6/Factory | Identified exit to Lower Caves 5634 | -6/Factory | Lost 3 allies 5679 | -6/Factory | Loaded intel: 8 recycling unit locations 5782 | -6/Factory | Build established: Hacker-Scout 5986 | -6/Factory | Spotted B-75 Beast 6035 | -6/Factory | Entered Lower Caves 6035 | -6/Lower Caves | Accompanied by 5 allies 6037 | -6/Lower Caves | UFD Scientist delivered a prototype 6038 | -6/Lower Caves | Found Prototype Protection 6042 | -6/Lower Caves | Learned 12 Factory zone layouts 6174 | -6/Lower Caves | Encountered a Warlord checkpoint 6417 | -6/Lower Caves | Discovered new exit (range 10) 6421 | -6/Lower Caves | Identified exit to Lower Caves 6440 | -6/Lower Caves | Entered another Lower Caves area 6440 | -6/Lower Caves | Accompanied by 3 allies 6570 | -6/Lower Caves | Prototype Device suddenly appears! 6572 | -6/Lower Caves | Found Prototype Device 6574 | -6/Lower Caves | Identified Amulet of Y3-NDR 6592 | -6/Lower Caves | Joined by bewildered Wizard 6592 | -6/Lower Caves | Joined by bewildered Wizard 6603 | -6/Lower Caves | Joined by bewildered Wizard 6604 | -6/Lower Caves | Joined by bewildered Wizard 6608 | -6/Lower Caves | Found Meta Core 6610 | -6/Lower Caves | Attached Meta Core, gained temporary slots: Propulsion, Utility, Weapon 6627 | -6/Lower Caves | Lost 3 allies 6630 | -6/Lower Caves | Discovered new exit (range 11) 6634 | -6/Lower Caves | Identified exit to Data Miner 6638 | -6/Lower Caves | Learned 4 Factory zone layouts 6671 | -6/Lower Caves | Entered Data Miner 6671 | -6/Data Miner | Accompanied by 4 allies 6671 | -6/Data Miner | Discovered new exit (range 6) 6674 | -6/Data Miner | Identified exit to Proximity Caves 6679 | -6/Data Miner | Met Data Miner 6686 | -6/Data Miner | Learned location of Section 7 (-2) 6686 | -6/Data Miner | Acquired the access code to Warlord's prototype stash 6693 | -6/Data Miner | Received God Mode back door access code from Data Miner 6708 | -6/Data Miner | Entered Proximity Caves 6708 | -5/Proximity Caves | Accompanied by 4 allies 6711 | -5/Proximity Caves | Spotter reported a threat 6711 | -5/Proximity Caves | Spotter reported a threat 6791 | -5/Proximity Caves | Attracted the attention of an 0b10 base 6848 | -5/Proximity Caves | Learned Factory terminal intel 6855 | -5/Proximity Caves | Discovered new exit (range 2) 6856 | -5/Proximity Caves | Identified exit to Factory 6877 | -5/Proximity Caves | Joined by bewildered Wizard 6878 | -5/Proximity Caves | Joined by bewildered Wizard 6901 | -5/Proximity Caves | Entered Factory 6901 | -5/Factory | Accompanied by 1 ally 6901 | -5/Factory | Evolved 2 slots: Propulsion x1, Utility x1 6902 | -5/Factory | Identified exit to Extension 6903 | -5/Factory | Identified exit to Factory 6903 | -5/Factory | Identified exit to Upper Caves 6904 | -5/Factory | Loaded intel: 28 terminal locations 6933 | -5/Factory | Joined by bewildered Wizard 6937 | -5/Factory | Joined by bewildered Wizard 6939 | -5/Factory | Joined by bewildered Wizard 6973 | -5/Factory | Garrison activated, responded to threat 7021 | -5/Factory | Joined by bewildered Wizard 7021 | -5/Factory | Joined by bewildered Wizard 7021 | -5/Factory | Joined by bewildered Wizard 7075 | -5/Factory | Lost 7 allies 7092 | -5/Factory | Loaded intel: 8 recycling unit locations 7092 | -5/Factory | Learned location of Protoforge (-2) 7124 | -5/Factory | Fabricated Ionic Axe? 7133 | -5/Factory | Joined by bewildered Wizard 7133 | -5/Factory | Joined by bewildered Wizard 7134 | -5/Factory | Joined by bewildered Wizard 7180 | -5/Factory | Build established: Wizard-Scout 7180 | -5/Factory | Identified Enh. Scrap Shield 7186 | -5/Factory | Joined by bewildered Wizard 7205 | -5/Factory | Fabricated Adv. Hacking Suite? 7272 | -5/Factory | Lost 4 allies 7285 | -5/Factory | Fabricated Cld. VTOL Module (x1) 7367 | -5/Factory | Entered Upper Caves 7400 | -5/Upper Caves | Attacked by a delusional Derelict stockpiling parts 7460 | -5/Upper Caves | Joined by bewildered Wizard 7460 | -5/Upper Caves | Joined by bewildered Wizard 7461 | -5/Upper Caves | Joined by bewildered Wizard 7502 | -5/Upper Caves | Learned Factory security intel 7508 | -5/Upper Caves | Joined by bewildered Wizard 7508 | -5/Upper Caves | Joined by bewildered Wizard 7508 | -5/Upper Caves | Joined by bewildered Wizard 7611 | -5/Upper Caves | Attracted the attention of an 0b10 outpost 7653 | -5/Upper Caves | Discovered new exit (range 13) 7657 | -5/Upper Caves | Identified exit to Upper Caves 7660 | -5/Upper Caves | Learned Factory trap positions 7664 | -5/Upper Caves | Joined by bewildered Wizard 7696 | -5/Upper Caves | Entered another Upper Caves area 7696 | -5/Upper Caves | Accompanied by 6 allies 7776 | -5/Upper Caves | Discovered new exit (range 5) 7778 | -5/Upper Caves | Identified exit to Warlord 7785 | -5/Upper Caves | Entered Warlord 7785 | -5/Warlord | Accompanied by 4 allies 7830 | -5/Warlord | Opened Warlord's prototype stash 7835 | -5/Warlord | Found Prototype Device 7835 | -5/Warlord | Identified Exp. Cloaking Device 7876 | -5/Warlord | Visited the Vortex Lab 7878 | -5/Warlord | Found Prototype Piercing Weapon 7878 | -5/Warlord | Identified Vortex Lance 7881 | -5/Warlord | Found Vortex Lance 7897 | -5/Warlord | Warlord's base attacked by MAIN.C 7943 | -5/Warlord | Rebuked by Warlord 7991 | -5/Warlord | Opened side exit 7999 | -5/Warlord | Discovered new exit (range 9) 8002 | -5/Warlord | Identified exit to Proximity Caves 8007 | -5/Warlord | Entered Proximity Caves 8007 | -4/Proximity Caves | Accompanied by 4 allies 8059 | -4/Proximity Caves | Joined by bewildered Wizard 8071 | -4/Proximity Caves | Learned location of Quarantine (-2) 8129 | -4/Proximity Caves | Build established: Wizard-Ninja 8196 | -4/Proximity Caves | Joined by bewildered Wizard 8197 | -4/Proximity Caves | Joined by bewildered Wizard 8274 | -4/Proximity Caves | Lost 3 allies 8291 | -4/Proximity Caves | Joined by bewildered Wizard 8292 | -4/Proximity Caves | Joined by bewildered Wizard 8293 | -4/Proximity Caves | Joined by bewildered Wizard 8325 | -4/Proximity Caves | Discovered exit to Factory (range 7) 8329 | -4/Proximity Caves | Entered Factory 8329 | -4/Factory | Accompanied by 4 allies 8329 | -4/Factory | Evolved 2 slots: Power x1, Utility x1 8330 | -4/Factory | Loaded intel: 81 trap records 8354 | -4/Factory | Loaded intel: 8 recycling unit locations 8357 | -4/Factory | Garrison activated, responded to threat 8378 | -4/Factory | Joined by bewildered Wizard 8410 | -4/Factory | Repaired Sml. Storage Unit 8422 | -4/Factory | Fabricated X-72 Disruptor? 8495 | -4/Factory | Identified exit to Upper Caves 8495 | -4/Factory | Identified exit to Armory 8517 | -4/Factory | Joined by bewildered Wizard 8517 | -4/Factory | Joined by bewildered Wizard 8517 | -4/Factory | Joined by bewildered Wizard 8539 | -4/Factory | Joined by bewildered Wizard 8577 | -4/Factory | Fabricated X-72 Disruptor? 8642 | -4/Factory | Fabricated X-72 Disruptor? 8674 | -4/Factory | Joined by bewildered Wizard 8674 | -4/Factory | Joined by bewildered Wizard 8674 | -4/Factory | Joined by bewildered Wizard 8946 | -4/Factory | Entered Upper Caves 8964 | -4/Upper Caves | Joined by bewildered Wizard 8964 | -4/Upper Caves | Joined by bewildered Wizard 8964 | -4/Upper Caves | Joined by bewildered Wizard 9019 | -4/Upper Caves | Spotted B-86 Titan 9068 | -4/Upper Caves | Joined by bewildered Wizard 9069 | -4/Upper Caves | Learned Research terminal intel 9111 | -4/Upper Caves | Discovered new exit (range 3) 9111 | -4/Upper Caves | Identified exit to Upper Caves 9120 | -4/Upper Caves | Entered another Upper Caves area 9120 | -4/Upper Caves | Accompanied by 4 allies 9135 | -4/Upper Caves | Discovered new exit (range 13) 9171 | -4/Upper Caves | Identified exit to Research 9281 | -4/Upper Caves | Joined by bewildered Wizard 9283 | -4/Upper Caves | Joined by bewildered Wizard 9289 | -4/Upper Caves | Encountered a Warlord checkpoint 9302 | -4/Upper Caves | Discovered new exit (range 3) 9303 | -4/Upper Caves | Identified exit to Zhirov 9307 | -4/Upper Caves | Entered Zhirov 9307 | -4/Zhirov | Accompanied by 4 allies 9307 | -4/Zhirov | Discovered new exit (range 3) 9308 | -4/Zhirov | Identified exit to Proximity Caves 9313 | -4/Zhirov | Met Zhirov 9318 | -4/Zhirov | Learned location of Testing (-3) 9318 | -4/Zhirov | Learned location of Command (-1) 9321 | -4/Zhirov | Zhirov requested help retrieving the SGEMP Prototype 9326 | -4/Zhirov | Found Alien Artifact 9326 | -4/Zhirov | Identified Integrated Reactor 9326 | -4/Zhirov | Installed Integrated Reactor, increased core energy generation (+10) 9333 | -4/Zhirov | Found Alien Artifact 9379 | -4/Zhirov | Entered Proximity Caves 9379 | -3/Proximity Caves | Accompanied by 4 allies 9570 | -3/Proximity Caves | Received a Behemoth hack from an annoying Tinkerer 9685 | -3/Proximity Caves | Joined by bewildered Wizard 9735 | -3/Proximity Caves | Discovered exit to Research (range 9) 9746 | -3/Proximity Caves | Joined by bewildered Wizard 9749 | -3/Proximity Caves | Joined by bewildered Wizard 9820 | -3/Proximity Caves | Entered Research 9820 | -3/Research | Accompanied by 4 allies 9820 | -3/Research | Evolved 2 slots: Propulsion x1, Utility x1 9822 | -3/Research | Loaded intel: 44 interactive machine locations 9823 | -3/Research | Loaded intel: 22 terminal locations 9835 | -3/Research | Identified exit to Research 9855 | -3/Research | Identified exit to Testing 9932 | -3/Research | Loaded intel: 5 recycling unit locations 9996 | -3/Research | Lost 3 allies 9997 | -3/Research | Spotted B-86 Titan 10003 | -3/Research | Joined by bewildered Wizard 10003 | -3/Research | Joined by bewildered Wizard 10011 | -3/Research | Joined by bewildered Wizard 10063 | -3/Research | Joined by bewildered Wizard 10326 | -3/Research | Crushed by falling debris 10326 | -3/Research | System corruption reached 10% 10357 | -3/Research | Lost 4 parts (1n1u2w) 10360 | -3/Research | Entered another Research area 10392 | -2/Research | Incoming investigation squad redirected 10398 | -2/Research | Loaded intel: 5 recycling unit locations 10404 | -2/Research | Joined by bewildered Wizard 10404 | -2/Research | Joined by bewildered Wizard 10405 | -2/Research | Spotted B-90 Cyclops 10408 | -2/Research | Joined by bewildered Wizard 10410 | -2/Research | Fabricated Exp. Q-thruster? 10430 | -2/Research | Fabricated Exp. Q-thruster? 10459 | -2/Research | Joined by bewildered Wizard 10459 | -2/Research | Joined by bewildered Wizard 10459 | -2/Research | Joined by bewildered Wizard 10487 | -2/Research | Identified Transdimensional Reconstructor 10497 | -2/Research | Identified exit to Quarantine 10506 | -2/Research | Lost 4 allies 10531 | -2/Research | Spotted B-90 Cyclops 10584 | -2/Research | Spotted B-90 Cyclops 10586 | -2/Research | Entered Quarantine 10769 | -2/Quarantine | Found Alien Artifact 10769 | -2/Quarantine | Identified Subatomic Replicator 10788 | -2/Quarantine | Found Prototype Processor 10806 | -2/Quarantine | Discovered new exit (range 11) 10812 | -2/Quarantine | Found Alien Reactor 10812 | -2/Quarantine | Identified Matter Drive 10818 | -2/Quarantine | Identified exit to Access 10831 | -2/Quarantine | Imp. System Shield fried by hacking feedback 10918 | -2/Quarantine | Spotted Fortress 10939 | -2/Quarantine | Discovered new exit (range 7) 10939 | -2/Quarantine | Discovered new exit (range 6) 10940 | -2/Quarantine | Identified exit to Protoforge 10940 | -2/Quarantine | Entered Protoforge 10940 | -2/Protoforge | Spotted B-90 Cyclops 11014 | -2/Protoforge | Superfortress began startup sequence 11028 | -2/Protoforge | Identified Exp. Targeting Computer 11031 | -2/Protoforge | Discovered exit to Access (range 15) 11066 | -2/Protoforge | Spotted Hotshot 11119 | -2/Protoforge | Spotted Hotshot 11119 | -2/Protoforge | Spotted Hotshot 11153 | -2/Protoforge | Spotted Hotshot 11153 | -2/Protoforge | Spotted Hotshot 11154 | -2/Protoforge | Spotted Overlord 11155 | -2/Protoforge | Spotted AP7-3 11156 | -2/Protoforge | Spotted AP7-3 11164 | -2/Protoforge | Incoming investigation squad redirected 11167 | -2/Protoforge | Spotted Decapitator 11167 | -2/Protoforge | Spotted Decapitator 11174 | -2/Protoforge | UFD initiated attack on Protoforge 11174 | -2/Protoforge | Loaded intel: 3 recycling unit locations 11180 | -2/Protoforge | Spotted EXE-6 11180 | -2/Protoforge | Spotted EXE-6 11220 | -2/Protoforge | Found Prototype Device 11220 | -2/Protoforge | Identified Cep. Recoil Nullifier 11244 | -2/Protoforge | Scanned by Researcher 11246 | -2/Protoforge | Warped through subspace 11259 | -2/Protoforge | Fabricated Exp. Q-thruster? 11260 | -2/Protoforge | Fabricated Exp. Q-thruster? 11261 | -2/Protoforge | Fabricated Exp. Q-thruster? 11262 | -2/Protoforge | Fabricated Exp. Q-thruster? 11268 | -2/Protoforge | Spotted V785-p 11268 | -2/Protoforge | Spotted V193-h 11268 | -2/Protoforge | Spotted V213-t 11268 | -2/Protoforge | Spotted V523-n 11271 | -2/Protoforge | Core integrity fell below 50% 11286 | -2/Protoforge | Found Prototype Device 11286 | -2/Protoforge | Identified Crosscalibrator 11290 | -2/Protoforge | Spotted Decapitator 11290 | -2/Protoforge | Spotted Decapitator 11290 | -2/Protoforge | Spotted Decapitator 11291 | -2/Protoforge | Spotted Immortal 11291 | -2/Protoforge | Spotted Immortal 11303 | -2/Protoforge | Spotted Immortal 11303 | -2/Protoforge | Spotted Immortal 11305 | -2/Protoforge | Core integrity fell below 20% 11307 | -2/Protoforge | Used Subatomic Replicator to replicate Amulet of Y3-NDR 11314 | -2/Protoforge | Found Cep. XC Strikerail 11316 | -2/Protoforge | Found Cep. Deflector Sword 11321 | -2/Protoforge | Destroyed by V213-t with Concept Helical Railcannon Last Messages --------------- 11311_ Penetrated by Slug. 11311_ Adv. Hacking Suite destroyed. 11312_ Railslug penetrates Research Cell. 11312_ Research Cell breached. 11312_ Railslug penetrates Machine. 11312_ Machine disabled. 11313_ Slug penetrates Research Cell. 11313_ Slug penetrates Reinforced Barrier. 11314_ Acquired Cep. XC Strikerail. 11315_ Cep. XC Strikerail severed. 11316_ Acquired Cep. Deflector Sword. 11317_ 0bP_NET: Lugger 172 inbound, all units not involved in other operations escort to target. 11317_ Exp. Q-thruster severed. 11318_ Cep. Deflector Sword severed. 11319_ Railslug penetrates Machine. 11319_ Railslug penetrates Reinforced Barrier. 11320_ Amulet of Y3-NDR destroyed. 11321_ Penetrated by Railslug. Map ----- +----------------------------------------------------+ | ?????????????????????????????????????????????????? | | ?????????????????????????????????????????????????? | | ?????????????????????????????????????????????????? | | ?????????????????????????????????????????????????? | | ?????????????????????????????????????????????????? | | ?????????????????????????????????????????????????? | | ?????????????????????????????????????????????????? | | ?????????????????????????????????????????????????? | | ?????????????????????????????????????????????????? | | ?????????????????????????????????????????????????? | | ?????????????????????????????????????????????????? | | ?????????????????????????????????????????????????? | | ?????????????????????????????????????????????????? | | ?????????????????????????????????????????????????? | | ?????????????????????????????????????????????????? | | ?????????????????????????????????????????????????? | | ?????????????????????????????????????????????????? | | ?????????????????????????????????????????????????? | | ?????????????????????????????????????????????????? | | ?????????????????????????????????????????????????? | | ?????????????????????????????????????????????????? | | ?????????????????????????????????????????????????? | | ?????????????################????????????????????? | | ?????????????################?????????######?????? | | ?????????????##""" "" """""##?????????#""""######" | | ?????????????##"/][ c]cc@"##?????????#" " # # | | ??????????????#" lV[][/["##?????????#" | | ??????????????###"" """""###??????????# | | ???????????????## l c ""# ????????##//##""""#? | | ??????????????? " V "##????????#" "? | | ????????????????" ""##??????# c "" | | ????????????????" ! ""##??????## | | ????????????????" ###?????#" | | ??????????????? " ###?????#"" | | ???????????????## "##?????#""" | | ???????????????## Y Y "" "##?????#"""" | | ??????????????? " V "" "##?????#"" | | ????????????????" """" "##?????#" | | ??????????????? " #"""""""##?????## | | ???????????????### # ########????????###"" ### | | ???????????????###### ########????????##"!! ##? | | ????????????????##### ##??????????????##" " ##? | | ???????????????????## ##??????????????##" !" ##? | | ???????????????????## ##??????????????##"!!" ##? | | ???????????????????## ####????????????##" !" ##? | | ???????????????????## ####????????????##" !" ##? | | ???????????????????## "##????????????##"!!" ##? | | ???????????????????## "##????????????##"! " ##? | | ???????????????????## "##????????????##"!!" ##? | | ???????????????????## "##????????????##"""# ##? | +----------------------------------------------------+ Best States ------------- Heat Dissipation 87 Coolant Potential 50 Energy Generation 47 Energy Capacity 270 Matter Stores 300 Matter Capacity 300 Sight Range 16 Robot Scan Range 16 Terrain Scan Density 10 Cloak Strength 4 Armor Coverage 800 Evasion (%) 78 Recoil Reduction 2 Salvage Targeting 5 Offensive Hacking 68 Defensive Hacking 38 Authchip Count 1 Item Schematics ----------------- Combat Drone Bay | -6/Data Miner | Free Lgt. Regenerative Plating | -6/Data Miner | Free Enh. Armored Leg | -6/Data Miner | Free Imp. Matter Compressor | -6/Data Miner | Free Ionic Axe | -6/Data Miner | Free Adv. Medium Treads | -6/Data Miner | Free Adv. Trap Scanner | -6/Data Miner | Free Matter Neutralizer | -6/Data Miner | Free Adv. Shield Generator | -6/Data Miner | Free Imp. Heavy Treads | -6/Data Miner | Free Adv. Force Field | -6/Data Miner | Free Imp. Force Booster | -6/Data Miner | Free Imp. Thunder Leg | -6/Data Miner | Free Adv. Hacking Suite | -5/Factory | Hacked Adv. System Shield | -5/Factory | Hacked Cld. VTOL Module | -5/Factory | Hacked Adv. Melee Analysis Suite | -5/Factory | Scanalyzed Lgt. Antimatter Reactor | -5/Factory | Scanalyzed Lrn. Missile Launcher | -5/Factory | Scanalyzed Field Propulsion Array | -4/Factory | Scanalyzed Biometal Leg | -4/Factory | Hacked Enh. Quantum Rifle | -4/Factory | Hacked Assault Drone Bay | -4/Zhirov | Free Exp. Heat Sink | -4/Zhirov | Free Exp. Optical Array | -4/Zhirov | Free Imp. Arc Thrower | -4/Zhirov | Free Exp. Q-thruster | -3/Research | Hacked Lgt. Quantum Reactor | -3/Research | Hacked Com. HERF Cannon | -2/Research | Scanalyzed Robot Schematics ------------------ A-15 Conveyor | -6/Data Miner | Free X-62 Marksman | -6/Data Miner | Free B-48 Gladiator | -6/Data Miner | Free G-67 Veteran | -6/Data Miner | Free M-30 Cleanser | -6/Data Miner | Free X-72 Disruptor | -6/Data Miner | Free Fabricated ------------ Ionic Axe | x1 | -5/Factory Adv. Hacking Suite | x1 | -5/Factory Cld. VTOL Module | x1 | -5/Factory X-72 Disruptor | x2 | -4/Factory X-72 Disruptor | x2 | -4/Factory X-72 Disruptor | x2 | -4/Factory Exp. Q-thruster | x1 | -2/Research | Authchip Exp. Q-thruster | x1 | -2/Research Exp. Q-thruster | x1 | -2/Protoforge Exp. Q-thruster | x1 | -2/Protoforge Exp. Q-thruster | x1 | -2/Protoforge Exp. Q-thruster | x1 | -2/Protoforge Repaired ---------- Lgt. Treads | 12% | -10/Materials Sml. Storage Unit | 63% | -4/Factory Alien Tech Used ----------------- Integrated Reactor Subatomic Replicator Matter Drive Transdimensional Reconstructor Achievements -------------- None Challenges ------------ None Game ------ Seed CarbideOpticalHammer Manual? 0 Play Time 03:18:54 Cumulative 410.4 hours Start 2025.05.17 @ 22:23:17 End 2025.05.18 @ 11:52:11 Sessions 3 Manual Loads 0 Difficulty Rogue Special Mode None Game No. 406 Rogue 401 Adventurer 5 Explorer 0 Win Type - Total 9 Types 6/0/0/3/0/0/0/0/0/0 Lore% 81 Gallery% 79 Achievement% 71 Wizard Run 0 Options --------- Layout 1 ASCII 0 Keyboard 0 Movement Arrows Keybinds 0 Fullscreen 1 Font 24/Terminus Map View 50x35 Zoom Use 0% Tactical HUD 1 Map Filters NONE Filters NONE Steam 1 RUN: cb1b8f97-9f6e-4bb3-827d-de45e0917ba4